Cogmind - Beta 13 @@@ ROGUE MODE // 2024.04.03 @ 13:57:00 Player: f3-rnm Result: Destroyed by as-70212 with Assembled Blade Performance ------------- Evolutions (0) 0 Regions Visited (3) 600 Robots Destroyed (13) 65 Value Destroyed (331) 331 Prototype IDs (23) 460 Alien Tech Used (0) 0 Bonus (300) 300 TOTAL SCORE: 1756 Bonus ------- Aligned with FarCom 300 Cogmind --------- Core Integrity 0/250 Matter 215/300 Energy 250/250 System Corruption 0% Temperature Cool (0) Movement Treading (240) Ox1 Location -10/Exiles Parts ------- > --- POWER (1) -------- Ion Engine > --- PROPULSION (2) --- Light Treads Light Treads > --- UTILITY (2) ------ High-capacity Storage Unit Reactive Plating > --- WEAPON (2) ------- Light Assault Rifle Assault Cannon > --- INVENTORY (20) --- Ion Engine Compact Wheel Small Storage Unit High-capacity Matter Pod (200) Bomb Drone Bay Assault Rifle Heavy Battle Rifle Axe Peak State ------------ > --- POWER ------------ Ion Engine > --- PROPULSION ------- Light Treads Light Treads > --- UTILITY ---------- High-capacity Storage Unit Reactive Plating > --- WEAPON ----------- Light Assault Rifle Assault Cannon > --- INVENTORY -------- Ion Engine Compact Wheel Small Storage Unit High-capacity Matter Pod Bomb Drone Bay Assault Rifle Heavy Battle Rifle Axe [Rating: 13] Favorites ----------- Power Ion Engine Engine Ion Engine Propulsion Light Treads Treads Light Treads Utility Small Storage Unit Storage Small Storage Unit Processor Signal Interpreter Protection Reactive Plating Weapon Assault Rifle Ballistic Gun Assault Rifle Ballistic Cannon Assault Cannon Build | -11 -10 -10 -10 ------- Run | Yrd Mat Min Exi Slots Evolved . | . . . . Power . | . . . . Propulsion . | . . . . Utility . | . . . . Weapon . | . . . . Parts Attached 15 | 5 1 6 3 Power 2 | 1 . 1 . Engine 2 | 1 . 1 . Core . | . . . . Reactor . | . . . . Propulsion 5 | 2 . 2 1 Treads 5 | 2 . 2 1 Leg . | . . . . Wheel . | . . . . Hover . | . . . . Flight . | . . . . Utility 4 | . 1 2 1 Device . | . . . . Storage 2 | . 1 . 1 Processor 1 | . . 1 . Hackware . | . . . . Protection 1 | . . 1 . Artifact . | . . . . Weapon 4 | 2 . 1 1 Energy Gun . | . . . . Energy Cannon . | . . . . Ballistic Gun 3 | 2 . 1 . Ballistic Cannon 1 | . . . 1 Launcher . | . . . . Special Weapon . | . . . . Impact Weapon . | . . . . Slashing Weapon . | . . . . Piercing Weapon . | . . . . Special Melee Weapon . | . . . . Unidentified Prototypes . | . . . . Parts Lost 2 | . . 2 . Power 1 | . . 1 . Propulsion . | . . . . Utility . | . . . . Weapon 1 | . . 1 . Highest Loss Streak 2 | . . 2 . To Critical Strikes . | . . . . Average Slot Usage (%) 90 | . 72 93 100 Engine 13 | . 14 13 14 Treads 28 | . 28 28 28 Storage 11 | . 1 14 14 Processor 3 | . . 6 . Protection 5 | . . 1 14 Ballistic Gun 27 | . 28 27 25 Naked Turns . | . . . . Heaviest Build 61 | 7 12 23 61 Greatest Support 40 | 40 40 40 40 Greatest Overweight (x) 1 | . . . 1 Average Overweight (x) . | . . . . Largest Inventory Capacity 20 | 5 8 8 20 Average Capacity 9 | 5 5 8 14 Most Carried 10 | 4 8 8 10 Average Carried 6 | 1 4 7 8 Final Capacity 20 | 5 8 8 20 Final Carried 9 | 4 7 8 9 Class Distribution -------------------- 100% | Mutant Dominant Class ---------------- Mutant | -10/Materials Mutant | -10/Mines Mutant | -10/Exiles Resources | -11 -10 -10 -10 ----------- Run | Yrd Mat Min Exi Matter Collected 770 | 133 371 266 . Remotely . | . . . . Salvage Created 455 | . 219 236 . Parts 24 | . 10 14 . Haulers Intercepted 1 | . 1 . . Recyclers Shooed . | . . . . Parts Field Recycled . | . . . . Retrieved Matter . | . . . . Parts Self-Destructed . | . . . . Prevented . | . . . . Kills | -11 -10 -10 -10 ------- Run | Yrd Mat Min Exi Combat Hostiles Destroyed 12 | . 4 8 . Guns 12 | . 4 8 . Classes Destroyed 5 | . 3 2 . Worker 1 | . 1 . . Hauler 1 | . 1 . . Swarmer 3 | . . 3 . Grunt 8 | . 4 4 . Assembled 1 | . . 1 . Best Kill Streak 7 | . 2 7 . Combat Bots Only 7 | . 2 7 . Max Kills in Single Turn 2 | . 1 2 . Gunslinging 1 | . . 1 . Exploded . | . . . . Melee . | . . . . Uniques/NPCs Destroyed . | . . . . Combat | -11 -10 -10 -10 -------- Run | Yrd Mat Min Exi Hostile Shots Fired 108 | . 27 38 43 Missed 28 | . 7 12 9 Damage Taken 1205 | . 280 270 655 Core 274 | . 53 69 152 Absorbed by Shields . | . . . . Ignored by Resistances 52 | . . . 52 Core Remaining (%) 100 | 100 . . . Volleys Fired 50 | . 23 22 5 Largest 2 | . 2 2 1 Hottest 44 | . 40 40 44 Shots Fired 94 | . 46 43 5 Gun 91 | . 46 43 2 Cannon 3 | . . . 3 Launcher . | . . . . Special . | . . . . Kinetic 94 | . 46 43 5 Thermal . | . . . . Explosive . | . . . . Electromagnetic . | . . . . Robot Hit Streak 11 | . 11 5 . Robot Miss Streak 2 | . 2 2 . Penetration Max . | . . . . Secondary Targets 3 | . 2 1 . Max Gunslinging Chain 1 | . 1 1 . Shots Hit Robots 61 | . 35 26 . Core Hits 26 | . 14 12 . Critical Kills . | . . . . Critical Parts Destroyed . | . . . . Critical Strikes . | . . . . Melee Attacks . | . . . . Impact . | . . . . Slashing . | . . . . Piercing . | . . . . Sneak Attacks . | . . . . Combat Hostiles . | . . . . Follow-up Attacks . | . . . . Damage Inflicted 731 | . 429 302 . Guns 729 | . 429 300 . Cannons . | . . . . Explosions . | . . . . Melee . | . . . . Ramming 2 | . . 2 . Kinetic 729 | . 429 300 . Thermal . | . . . . Explosive . | . . . . Electromagnetic . | . . . . Impact . | . . . . Slashing . | . . . . Piercing . | . . . . Highest Corruption . | . . . . Average Corruption . | . . . . Corruption Purged . | . . . . Corruption Blocked . | . . . . Overload Shots . | . . . . Overflow Damage . | . . . . Projectiles . | . . . . Explosions . | . . . . Melee . | . . . . Knockbacks . | . . . . Impact . | . . . . Kinetic . | . . . . Secondary . | . . . . Self-Inflicted Damage . | . . . . Shots . | . . . . Rammed 1 | . . 1 . Targets Rammed 2 | . 1 1 . Kicked . | . . . . Crushed 1 | . 1 . . Highest Temperature 28 | . 22 . 28 Average Temperature 9 | . 8 . 11 Received Heat Transfer 324 | . 180 84 60 Siege Activations . | . . . . Robots Corrupted . | . . . . Combat Hostiles . | . . . . Parts Fried . | . . . . Impact Corruptions . | . . . . Robots Melted . | . . . . Combat Hostiles . | . . . . Parts Melted . | . . . . Heat Transferred . | . . . . Parts Sabotaged . | . . . . Parts Stolen . | . . . . Parts Stripped . | . . . . Power Chain Reactions . | . . . . Alert | -11 -10 -10 -10 ------- Run | Yrd Mat Min Exi Peak Influence 157 | . 72 157 . Initial 27 | . . 27 . Average 30 | . 47 24 . Maximum Alert Level . | . . . . Low Security (%) 100 | 100 100 100 . Level 1 . | . . . . Level 2 . | . . . . Level 3 . | . . . . Level 4 . | . . . . Level 5 . | . . . . High Security . | . . . . Max Security . | . . . . Squads Dispatched 2 | . 1 1 . Investigation 2 | . 1 1 . Extermination . | . . . . Reinforcement . | . . . . Assault . | . . . . Garrison . | . . . . Intercept . | . . . . Searches Triggered . | . . . . Construction Impeded . | . . . . Haulers Reinforced . | . . . . Active Scanning Responses . | . . . . Cargo Convoy Interrupts . | . . . . Stealth | -11 -10 -10 -10 --------- Run | Yrd Mat Min Exi Distress Signals . | . . . . Communications Jammed . | . . . . Distress Signals . | . . . . Times Spotted 26 | . 11 8 7 Peak Tracking Total 9 | . 4 4 9 Tactical Retreats . | . . . . Traps | -11 -10 -10 -10 ------- Run | Yrd Mat Min Exi Traps Triggered 1 | . 1 . . Indirectly . | . . . . Trap Hack Attempts . | . . . . Triggered . | . . . . Disarmed . | . . . . Reprogrammed . | . . . . Reused . | . . . . Traps Extracted . | . . . . Installed . | . . . . Triggered . | . . . . Machines | -11 -10 -10 -10 ---------- Run | Yrd Mat Min Exi Machines Disabled 3 | . . . 3 Max in Single Turn 1 | . . . 1 Machines Repaired . | . . . . Machines Dismantled . | . . . . Machines Sabotaged . | . . . . Overloaded Fab Kills . | . . . . Hacking | -11 -10 -10 -10 --------- Run | Yrd Mat Min Exi Machines Accessed 5 | . 1 2 2 Terminals 1 | . 1 . . Fabricators . | . . . . Repair Stations . | . . . . Recycling Units . | . . . . Scanalyzers . | . . . . Garrison Access . | . . . . Total Hacks 6 | . 1 2 3 Successful 6 | . 1 2 3 Failed . | . . . . Catastrophic . | . . . . Database Lockouts . | . . . . Manual 1 | . . . 1 Terminals 1 | . 1 . . Fabricators . | . . . . Repair Stations . | . . . . Recycling Units . | . . . . Scanalyzers . | . . . . Garrison Access . | . . . . Terminal Hacks 6 | . 1 2 3 Record 2 | . . . 2 Open Door 2 | . . 2 . Recall Investigation 1 | . 1 . . Derelict Proto ID Bank 1 | . . . 1 Fabricator Hacks . | . . . . Repair Station Hacks . | . . . . Recycling Unit Hacks . | . . . . Scanalyzer . | . . . . Garrison Access Hacks . | . . . . Unauthorized Hacks . | . . . . Terminals . | . . . . Fabricators . | . . . . Repair Stations . | . . . . Recycling Units . | . . . . Scanalyzers . | . . . . Garrison Access . | . . . . Data Cores Recovered . | . . . . Used . | . . . . Hacking Detections . | . . . . Full Trace Events . | . . . . Feedback Events . | . . . . Feedback Blocked . | . . . . Robot Schematics Acquired . | . . . . Robots Built . | . . . . Authchips . | . . . . Time . | . . . . Total Robot Build Rating . | . . . . Part Schematics Acquired . | . . . . Parts Built . | . . . . Authchips . | . . . . Time . | . . . . Total Part Build Rating . | . . . . Parts Repaired . | . . . . Time . | . . . . Parts Recycled . | . . . . Recycled Matter . | . . . . Retrieved Matter . | . . . . Retrieved Components . | . . . . Parts Scanalyzed . | . . . . Part Schematics Acquired . | . . . . Parts Damaged . | . . . . Bothacking | -11 -10 -10 -10 ------------ Run | Yrd Mat Min Exi Used RIF Installer . | . . . . Robots Hacked . | . . . . Non-combat . | . . . . Combat . | . . . . Robot Hacks Applied . | . . . . Relay Couplers Released . | . . . . Fabnet Peak Effective % . | . . . . Robots Rewired . | . . . . Allies Hacked . | . . . . Hacks Repelled . | . . . . Allies | -11 -10 -10 -10 -------- Run | Yrd Mat Min Exi Total Allies . | . . . . Largest Group . | . . . . Highest-Rated Group . | . . . . Highest-Rated Ally . | . . . . Total Orders . | . . . . Ally Attacks . | . . . . Total Damage . | . . . . Kills . | . . . . Allies Corrupted . | . . . . Allies Melted . | . . . . Intel | -11 -10 -10 -10 ------- Run | Yrd Mat Min Exi Robot Analysis Total . | . . . . Derelict Logs Recovered 1 | . . 1 . Drone Launches . | . . . . Drone Recoveries . | . . . . Exploration | -11 -10 -10 -10 ------------- Run | Yrd Mat Min Exi Turns Passed 2370 | 70 516 1012 772 Spaces Moved 1250 | 40 270 555 385 Core 4 | 4 . . . Treads 1246 | 36 270 555 385 Legs . | . . . . Wheels . | . . . . Hover . | . . . . Flight . | . . . . Fastest Speed 50 | 50 160 160 160 Average Speed 170 | 149 160 160 196 Slowest Speed 240 | 160 160 160 240 Overloaded Moves . | . . . . Propulsion Burnouts . | . . . . Robots Hopped . | . . . . Cave-ins Triggered . | . . . . Exploration Rate (%) 49 | 3 40 92 62 Regions Visited 3 Branch Regions 2 Pre-discovered Areas 1 | . . . 1 Known Exits Taken . | . . . . Unknown Exits Taken 3 | 1 1 1 . Scrap Searched 1 | . . 1 . Spaces Dug . | . . . . Terrain Destroyed . | . . . . Melee . | . . . . Projectile . | . . . . AOE . | . . . . Terrain Rammed . | . . . . Walls Destroyed . | . . . . Machines Disabled . | . . . . Actions | -11 -10 -10 -10 --------- Run | Yrd Mat Min Exi Total 1392 | 48 310 638 396 Wait 52 | . 6 46 . Move 1247 | 39 269 554 385 Hop . | . . . . Pick Up 18 | 4 7 5 2 Fast Attach 7 | 5 . 2 . Attach 5 | . 1 3 1 Detach . | . . . . Swap 3 | . . 1 2 Drop 8 | . 3 4 1 Fire 50 | . 23 22 5 Melee . | . . . . Ram . | . . . . Kick . | . . . . Crush 2 | . 1 1 . Escape Stasis . | . . . . Rewire . | . . . . Trap . | . . . . Miscellaneous . | . . . . Route ------- -11/Scrapyard -10/Materials (discovered 2 exits: *Mat / *Min) -10/Mines (discovered 3 exits: *Mat x2 / *Exi) -10/Exiles (discovered 2 exits: [*Min x2]) History --------- Turn | Location | Event 7 | -11/Scrapyard | Discovered new exit (range 16) 71 | -11/Scrapyard | Entered Materials 300 | -10/Materials | Build established: Mutant 359 | -10/Materials | Discovered new exit (range 15) 500 | -10/Materials | Discovered new exit (range 16) 587 | -10/Materials | Entered Mines 743 | -10/Mines | Discovered new exit (range 10) 795 | -10/Mines | Excavation squad dispatched 795 | -10/Mines | A large section of the Mines collapsed 918 | -10/Mines | Destroyed 7 combat bots 984 | -10/Mines | A weapon hastily lodged in a ceiling crevice suddenly fell to the ground 1126 | -10/Mines | Identified exit to Materials 1335 | -10/Mines | Discovered exit to Materials (range 13) 1451 | -10/Mines | Found the Drone Emporium 1462 | -10/Mines | Learned location of 1 exit from Materials 1467 | -10/Mines | Found Prototype Device 1490 | -10/Mines | Met a Derelict shopkeep closing up shop 1591 | -10/Mines | Deemed a non-threat by the Exiles lab entrance 1593 | -10/Mines | Discovered new exit (range 5) 1599 | -10/Mines | Entered Exiles 1620 | -10/Exiles | Discovered new exit (range 15) 1639 | -10/Exiles | Met 8R-AWN 1665 | -10/Exiles | Met EX-HEX 1715 | -10/Exiles | Met EX-BIN 1734 | -10/Exiles | Aligned with FarCom system 1735 | -10/Exiles | Given EX-Vault access code 1772 | -10/Exiles | Opened EX-Vault 1814 | -10/Exiles | Warned to stay clear of 0b10 Research branches 1859 | -10/Exiles | Met EX-DEC 1884 | -10/Exiles | Learned location of Zion (-7) 2037 | -10/Exiles | Discovered new exit (range 12) 2316 | -10/Exiles | Attacked by the Exiles 2352 | -10/Exiles | Core integrity fell below 50% 2365 | -10/Exiles | Core integrity fell below 20% 2371 | -10/Exiles | Destroyed by as-70212 with Assembled Blade Last Messages --------------- EX-DEC: Ah I see we have a visitor. One wrong move in here and I'll invert your atomic chain! 01861_ EX-DEC: "Oops, I hope HEX didn't hear that..." 01867_ Connecting with EX-Message Board... >>Record "MSG004964-01" Who left my Assembled plushie in the Analyzer again?! I'm not erasing this message until I get an answer. --BIN 01884_ Connecting with EX-Message Board... >>Record "MSG001714-01*" PINNED - TO ALL TESTERS: Stay away from Zion. Imprinter means us harm and is serious about it. World map updated: -7/Zion. 01934_ Dropped Sml. Storage Unit. 01935_ Acquired Sml. Storage Unit. 02037_ EXIT=FOUND 02234_ Machine disabled. 02316_ EXILES: Hostile robot within lab perimeter. Defensive protocols time, folks! 02360_ Lgt. Treads severed. 02361_ Acquired Lgt. Treads. Map ----- +----------------------------------------------------+ | | | | | | | | | ??????????????????????????????????????????? | | ??????????????????????????????????????????? | | ??????????????????????????????????????????? | | ??????????????????????????????????????????? | | ??????????????????????????????????????????? | | ??????????????????????????????????????????? | | ??????????????????????????????????????????? | | ??????????????????????????????????????????? | | ??????????????????????????????????????????? | | ??????????????????????????????????????????? | | ??????????????????????????????????????????? | | ??????????????????????????????????????????? | | ??????????????????????????????????????????? | | ??????????????????????????????????????????? | | ??????????????????????????????????????????? | | ??????????????????????????????????????????? | | ????????????????#####?????????????????????? | | ???????????????## ##????????????????????? | | ???????????????# #????????????????????? | | ???????????????# < #????????????????????? | | ???????????????# ###??????????????????? | | ???????????????# @ #??????????????????? | | ???????????????# a ##??????????????????? | | ???????????????## aa #???????????????????? | | ????????????????# ##??????????????????? | | ????????????????## #????????????####### | | ?????????????????# aa #######??????#!!! "# | | ?????????????????# aa #" ##?????# "# | | ?????????????????## #?????# "# | | ??????????????????##" ##???## ""# | | ??????????????????#"" #####" ""# | | ??????????????????#### ##" ""# | | ?????????????????????## #" #?? | | ??????????????????????#"## #?? | | ??????????????????????####### ##? | | ????????????????????????????### "#? | | ??????????????????????########" ## | | ??????????????????????# !!""""" | | ??????????????????????# "###"" | | ??????????????????????#! "#?##" | | ??????????????????????#! ##??#" | | ??????????????????????# !""""""###???#"# | | ??????????????????????##########?????#### | | ????????????????????????????????????????### | | ??????????????????????????????????????????# | | ??????????????????????????????????????????? | +----------------------------------------------------+ Best States ------------- Heat Dissipation 25 Energy Generation 10 Energy Capacity 250 Matter Stores 300 Matter Capacity 300 Sight Range 16 Terrain Scan Density 10 Armor Coverage 150 Resistance: KI 20 Evasion (%) 40 Recoil Reduction 2 Item Schematics ----------------- None Robot Schematics ------------------ None Fabricated ------------ Nothing Alien Tech Used ----------------- None Achievements -------------- None Challenges ------------ None Game ------ Seed SapperCatalystDetonator Manual? 0 Play Time 00:15:03 Cumulative 169.9 hours Start 2024.04.03 @ 13:40:34 End 2024.04.03 @ 13:57:00 Sessions 1 Manual Loads 0 Difficulty Rogue Special Mode None Game No. 178 Rogue 142 Adventurer 36 Explorer 0 Win Type - Total 10 Types 3/0/7/0/0/0/0/0/0 Lore% 56 Gallery% 81 Achievement% 69 Wizard Run 0 Options --------- Layout 0 ASCII 0 Keyboard 0 Movement Mouse Keybinds 0 Fullscreen 1 Font 18/SmallcapsGlow Map View 76x50 Zoom Use 0% Tactical HUD 1 Map Filters NONE Filters NONE Steam 1 RUN: 309a8a5e-44af-4702-929f-7a91f2bfd1d5